[Event "18th Brasschaat Open 2018"]
[Site "Brasschaat"]
[Date "2018.08.26"]
[Round "9"]
[White "Draftian, Ashote"]
[Black "Busschots, Johan"]
[Result "0-1"]
[ECO "C17"]
[WhiteElo "2247"]
[BlackElo "1823"]
[Annotator "NA"]
[PlyCount "41"]
[EventDate "2018.08.18"]
[EventType "swiss"]
[EventCountry "BEL"]
[SourceTitle "playchess.com"]
[Source "ChessBase"]
[SourceQuality "1"]
[TimeControl "40/5400+30:1800+30"]

1. e4 {[%emt 0:26:26]} e6 {[%emt 0:00:00]} 2. Nc3 {[%emt 0:02:50]} d5 {[%emt 0:00:34]} 3. d4 {[%emt 0:00:59]} Bb4 {[%emt 0:00:14]} 4. e5 {[%emt 0:01:21]} c5 {[%emt 0:00:10]} 5. Bd2 {[%emt 0:01:57]} Ne7 {[%emt 0:01:23]} 6. Nb5 {[%emt 0:01:32]} Bxd2+ {[%emt 0:00:35]} 7. Qxd2 {[%emt 0:00:06]} O-O {[%emt 0:00:14]} 8. dxc5 {[%emt 0:00:52]} Nd7 {[%emt 0:01:51]} 9. Qc3 {[%emt 0:01:15]} a6 {[%emt 0:01:53] C17: French: 3 Nc3 Bb4 4 e5 c5 sidelines} 10. Nd6 {[%emt 0:03:38]} Qc7 {[%emt 0:00:24]} (10... b6 11. cxb6 Qxb6 12. Nf3 Ng6 13. Bd3 Ngxe5 14. Nxe5 Qxd6 15. f4 f6 16. Qc6 Qb4+ 17. c3 Nxe5 18. fxe5 Qxb2 {0-1 (25) Simonian,H (2445)-Mousavi,S (2422) Sareyn 2017}) 11. O-O-O {[%emt 0:14:17]} Qxc5 {[%emt 0:00:29]} 12. Qxc5 {[%emt 0:13:04]} Nxc5 {[%emt 0:00:11]} 13. f4 {[%emt 0:03:15]} f6 {[%emt 0:00:54]} 14. Nf3 {[%emt 0:01:17]} Nc6 $146 {[%emt 0:04:56]} ({Predecessor:} 14... b5 15. g3 Rb8 16. exf6 gxf6 17. Bh3 {½-½ (48) Sacerdotali,S (2095)-Kroes,F (2088) LSS email 2009}) 15. Be2 {[%emt 0:05:22]} fxe5 {[%emt 0:01:06]} 16. fxe5 {[%emt 0:00:43]} Nd7 {[%emt 0:02:15]} 17. Rhe1 {[%emt 0:13:03]} Ndxe5 {[%emt 0:04:32]} 18. Nxe5 {[%emt 0:00:38]} Nxe5 {[%emt 0:01:56]} 19. Bh5 {[%emt 0:01:07]} Nc6 {[%emt 0:03:12]} 20. Bg4 {[%emt 0:01:47]} Nd8 $1 {[%emt 0:03:19]} 21. c3 $11 {[%emt 0:00:00]} 0-1

[Event "18th Brasschaat Open 2018"]
[Site "Brasschaat"]
[Date "2018.08.26"]
[Round "9"]
[White "Dauw, Sterre"]
[Black "Pirard, Natan"]
[Result "1/2-1/2"]
[ECO "B31"]
[WhiteElo "2192"]
[BlackElo "2067"]
[Annotator "NA"]
[PlyCount "139"]
[EventDate "2018.08.18"]
[EventType "swiss"]
[EventCountry "BEL"]
[SourceTitle "playchess.com"]
[Source "ChessBase"]
[SourceQuality "1"]
[TimeControl "40/5400+30:1800+30"]

1. e4 {[%emt 0:00:00]} c5 {[%emt 0:00:00]} 2. Nf3 {[%emt 0:00:00]} Nc6 {[%emt 0:00:00]} 3. Bb5 {[%emt 0:00:00]} g6 {[%emt 0:00:00]} 4. Bxc6 {[%emt 0:00:00]} dxc6 {[%emt 0:00:05]} 5. h3 {[%emt 0:00:00]} Bg7 {[%emt 0:00:06]} 6. d3 {[%emt 0:00:06]} Nf6 {[%emt 0:01:06]} 7. O-O {[%emt 0:00:22]} Nd7 {[%emt 0:01:47]} 8. Nc3 {[%emt 0:01:08]} e5 {[%emt 0:01:35]} 9. Be3 {[%emt 0:00:08]} Qe7 {[%emt 0:00:52]} 10. Qd2 {[%emt 0:01:01]} O-O {[%emt 0:13:32]} 11. a3 {[%emt 0:02:45] B31: Sicilian: 2...Nc6 3 Bb5 g6} (11. Nh2 Re8 12. f4 exf4 13. Bxf4 Nf8 14. Bh6 Bd4+ 15. Kh1 Be6 16. Rae1 c4 17. Nf3 Bh8 18. d4 b5 {½-½ (40) Halkias,S (2585)-Naiditsch,A (2687) Tallinn 2016}) 11... Rd8 {[%emt 0:06:23]} 12. b4 {[%emt 0:17:48]} b5 $146 {[%emt 0:31:25]} ({Predecessor:} 12... cxb4 13. axb4 Qxb4 14. Bxa7 b6 15. Ra4 Qe7 16. Rfa1 Bb7 17. Qe3 b5 18. R4a2 Qb4 {½-½ (42) Dragnev,V (2371)-Drozdowski,K (2457) Ceske Budejovice 2015}) 13. Rfb1 {[%emt 0:23:49]} Bb7 {[%emt 0:03:28]} 14. Ne2 {[%emt 0:10:35]} cxb4 {[%emt 0:18:15]} 15. Qxb4 {[%emt 0:00:54]} Qxb4 {[%emt 0:10:04]} 16. axb4 {[%emt 0:00:14]} a6 {[%emt 0:00:11]} 17. Nc1 {[%emt 0:01:00]} c5 {[%emt 0:01:13]} 18. bxc5 {[%emt 0:00:53]} Rac8 {[%emt 0:00:42]} 19. Nb3 {[%emt 0:00:38]} Bf8 {[%emt 0:00:32]} 20. c6 {[%emt 0:02:47]} Bxc6 {[%emt 0:05:09]} 21. Rxa6 {[%emt 0:00:16]} b4 {[%emt 0:00:50]} 22. Ra5 {[%emt 0:01:25]} f6 {[%emt 0:01:35]} 23. Nfd2 {[%emt 0:03:53]} Ra8 {[%emt 0:00:48]} 24. Rba1 {[%emt 0:04:35]} Rdc8 {[%emt 0:00:45]} 25. Rxa8 {[%emt 0:01:05]} Rxa8 {[%emt 0:00:42]} 26. Rxa8 {[%emt 0:00:07]} Bxa8 {[%emt 0:00:01]} 27. Nc4 {[%emt 0:01:06]} Bc6 {[%emt 0:00:16]} 28. Kf1 {[%emt 0:01:45]} Kf7 {[%emt 0:00:46]} 29. Nb6 {[%emt 0:00:31]} Nxb6 {[%emt 0:00:53]} 30. Bxb6 {[%emt 0:00:07]} Ba4 {[%emt 0:00:31]} 31. Ke2 {[%emt 0:00:08]} Ke6 {[%emt 0:00:12]} 32. Kd2 {[%emt 0:00:58]} f5 {[%emt 0:00:54]} 33. Bc5 {[%emt 0:04:03]} Bh6+ {[%emt 0:00:28]} 34. Kd1 {[%emt 0:02:13]} fxe4 {[%emt 0:00:14]} 35. dxe4 {[%emt 0:00:16]} Bc6 {[%emt 0:01:06]} 36. Bxb4 {[%emt 0:05:54]} Bxe4 {[%emt 0:00:19]} 37. Nc5+ {[%emt 0:00:05]} Kd5 {[%emt 0:00:26]} 38. Nxe4 {[%emt 0:00:42]} Kxe4 {[%emt 0:00:02]} 39. Ke2 {[%emt 0:00:12]} Kd4 {[%emt 0:00:53]} 40. Bd2 {[%emt 0:01:32]} Bf8 {[%emt 0:00:55]} 41. f3 {[%emt 0:32:21]} e4 {[%emt 0:06:26]} 42. Be3+ {[%emt 0:00:00]} Kd5 {[%emt 0:02:15]} 43. c4+ {[%emt 0:00:00]} Kxc4 {[%emt 0:04:00]} 44. fxe4 {[%emt 0:00:00]} Bg7 {[%emt 0:01:34]} 45. Kf3 {[%emt 0:00:00]} Kb5 {[%emt 0:00:11]} 46. Kg4 {[%emt 0:00:00]} Kc6 {[%emt 0:00:32]} 47. Kg5 {[%emt 0:00:00]} Kd6 {[%emt 0:00:48]} 48. Bf4+ {[%emt 0:00:00]} Ke6 $16 {[%emt 0:00:15]} 49. g4 {[%emt 0:00:00]} Kf7 {[%emt 0:01:12]} 50. Kh4 {[%emt 0:00:00]} Ke6 {[%emt 0:01:53]} 51. Kg3 {[%emt 0:00:00]} Bf6 {[%emt 0:01:59]} 52. Kf3 {[%emt 0:00:00]} Bd4 {[%emt 0:00:50]} 53. Ke2 {[%emt 0:00:00]} Bg7 {[%emt 0:01:47]} 54. Kd3 {[%emt 0:00:00]} Bb2 {[%emt 0:00:11]} 55. Kc4 {[%emt 0:00:00]} Bg7 {[%emt 0:01:10]} 56. Be3 {[%emt 0:00:00]} Be5 {[%emt 0:01:16]} 57. Bd4 {[%emt 0:00:00]} Bd6 {[%emt 0:00:17]} 58. Bg7 {[%emt 0:00:00]} Bb8 {[%emt 0:00:40]} 59. Kc5 {[%emt 0:00:13]} Be5 {[%emt 0:00:38]} 60. Bf8 {[%emt 0:00:38]} Bf4 {[%emt 0:00:08]} 61. Kd4 {[%emt 0:00:44]} Be5+ {[%emt 0:00:30]} 62. Kd3 {[%emt 0:00:18]} Bf4 {[%emt 0:00:37]} 63. Bg7 {[%emt 0:00:07]} Bd6 {[%emt 0:00:22]} 64. Kd4 {[%emt 0:00:07]} Ba3 {[%emt 0:00:55]} 65. e5 {[%emt 0:00:15]} Bb2+ {[%emt 0:00:13]} 66. Ke4 {[%emt 0:00:07]} Bc1 {[%emt 0:00:14]} 67. h4 {[%emt 0:01:05]} Bb2 {[%emt 0:00:32]} 68. h5 {[%emt 0:00:09]} Bc1 {[%emt 0:00:22]} 69. Bf6 {[%emt 0:01:00]} Bb2 {[%emt 0:00:21]} 70. hxg6 {[%emt 0:00:20]} 1/2-1/2

[Event "18th Brasschaat Open 2018"]
[Site "Brasschaat"]
[Date "2018.08.26"]
[Round "9"]
[White "Den Hartog, Marijn"]
[Black "Grochal, Joey"]
[Result "0-1"]
[ECO "A17"]
[WhiteElo "2118"]
[BlackElo "2300"]
[Annotator "NA"]
[PlyCount "90"]
[EventDate "2018.08.18"]
[EventType "swiss"]
[EventCountry "BEL"]
[SourceTitle "playchess.com"]
[Source "ChessBase"]
[SourceQuality "1"]
[TimeControl "40/5400+30:1800+30"]

1. Nf3 {[%emt 0:00:00]} Nf6 {[%emt 0:00:00]} 2. c4 {[%emt 0:00:00]} e6 {[%emt 0:00:00]} 3. g3 {[%emt 0:00:00]} b6 {[%emt 0:00:52]} 4. Bg2 {[%emt 0:00:00]} Bb7 {[%emt 0:00:05]} 5. O-O {[%emt 0:00:13]} Be7 {[%emt 0:00:05]} 6. Nc3 {[%emt 0:00:20]} O-O {[%emt 0:00:30]} 7. Re1 {[%emt 0:00:03]} Ne4 {[%emt 0:00:20]} 8. Nxe4 {[%emt 0:03:25]} Bxe4 {[%emt 0:00:02]} 9. d3 {[%emt 0:00:03]} Bb7 {[%emt 0:00:20]} 10. Bf4 $146 {[%emt 0:02:38] A17: Englische Eröffnung} ({Vorgänger:} 10. e4 c5 11. d4 cxd4 12. Nxd4 d6 13. b3 a6 14. Bb2 Nd7 15. Qg4 Ne5 16. Qe2 Rc8 17. Rad1 Qc7 18. f4 Nc6 19. Nc2 Rfe8 20. Ne3 Bf8 {½-½ (43) Efimenko,Z (2636)-Johansson,L (2468) Germany 2018}) 10... c5 {[%emt 0:06:57]} 11. a3 {[%emt 0:08:58]} d6 {[%emt 0:15:40]} 12. b4 {[%emt 0:02:17]} Bf6 {[%emt 0:01:29]} 13. Ra2 {[%emt 0:01:54]} Nc6 {[%emt 0:03:34]} 14. Qb1 {[%emt 0:17:46]} Qd7 {[%emt 0:06:58]} 15. Rc1 {[%emt 0:12:31]} h6 {[%emt 0:06:12]} 16. Nd2 {[%emt 0:01:31]} Rab8 {[%emt 0:03:38]} 17. Ne4 {[%emt 0:00:31]} Be7 {[%emt 0:00:18]} 18. b5 {[%emt 0:05:44]} (18. bxc5 $14 bxc5 19. Rb2) 18... Nd4 {[%emt 0:01:46]} 19. Nc3 {[%emt 0:03:44]} g5 {[%emt 0:01:04]} 20. Be3 {[%emt 0:01:55]} f5 {[%emt 0:00:53]} 21. f4 {[%emt 0:02:18]} Kh7 {[%emt 0:04:31]} 22. Rf1 {[%emt 0:09:46]} Rg8 {[%emt 0:03:14]} 23. fxg5 {[%emt 0:01:13]} Bxg2 {[%emt 0:06:53]} 24. Kxg2 {[%emt 0:00:06]} Qb7+ {[%emt 0:00:05]} 25. Kg1 {[%emt 0:02:24]} Bxg5 {[%emt 0:02:39]} 26. Bxg5 {[%emt 0:00:07]} hxg5 {[%emt 0:01:53]} 27. Qd1 {[%emt 0:02:34]} g4 {[%emt 0:00:21]} 28. e4 {[%emt 0:02:58]} Nf3+ {[%emt 0:01:09]} 29. Rxf3 {[%emt 0:03:10]} gxf3 {[%emt 0:00:12]} 30. Qxf3 {[%emt 0:00:03]} Rg5 {[%emt 0:02:30]} 31. Qf4 {[%emt 0:02:06]} Qg7 {[%emt 0:01:45]} 32. Qxd6 {[%emt 0:03:10]} Qxc3 {[%emt 0:01:34]} 33. Qxb8 {[%emt 0:00:48]} Qxd3 {[%emt 0:00:13]} 34. Rf2 {[%emt 0:01:22]} Qxe4 {[%emt 0:04:33]} 35. Qf4 {[%emt 0:05:39]} Qxf4 {[%emt 0:05:23]} 36. Rxf4 {[%emt 0:00:04]} Rg7 {[%emt 0:00:12]} 37. Rh4+ {[%emt 0:01:31]} Kg6 {[%emt 0:00:10]} 38. Rh8 {[%emt 0:00:22]} Kf6 {[%emt 0:00:17]} 39. Kf2 {[%emt 0:00:24]} Rg4 {[%emt 0:02:52]} 40. Rh7 {[%emt 0:00:42]} Rxc4 {[%emt 0:00:10]} 41. Rxa7 {[%emt 0:30:03]} Rc2+ {[%emt 0:30:12]} 42. Kg1 {[%emt 0:00:23]} Ke5 {[%emt 0:01:54]} ({Better is} 42... e5 $17 43. Rb7 e4 44. Rxb6+ Ke5) 43. Rh7 {[%emt 0:00:00]} c4 {[%emt 0:00:00]} 44. h4 {[%emt 0:00:00]} Ra2 {[%emt 0:00:00]} 45. Rb7 {[%emt 0:00:00]} c3 $19 {[%emt 0:00:00]} 0-1

[Event "18th Brasschaat Open 2018"]
[Site "Brasschaat"]
[Date "2018.08.26"]
[Round "9"]
[White "Oudewaal, Vincent"]
[Black "Sadkowski, Daniel"]
[Result "0-1"]
[ECO "A20"]
[WhiteElo "2070"]
[BlackElo "2235"]
[Annotator "NA"]
[PlyCount "102"]
[EventDate "2018.08.18"]
[EventType "swiss"]
[EventCountry "BEL"]
[SourceTitle "playchess.com"]
[Source "ChessBase"]
[SourceQuality "1"]
[TimeControl "40/5400+30:1800+30"]

1. c4 {[%emt 0:00:00]} e5 {[%emt 0:01:35]} 2. g3 {[%emt 0:00:00]} c6 {[%emt 0:00:05]} 3. d4 {[%emt 0:00:01]} Bb4+ {[%emt 0:00:06]} 4. Bd2 {[%emt 0:00:06]} Bxd2+ {[%emt 0:00:06]} 5. Qxd2 {[%emt 0:00:04]} d6 {[%emt 0:00:03]} 6. dxe5 {[%emt 0:02:39] A20: Englische Eröffnung} dxe5 {[%emt 0:00:11]} 7. Qxd8+ {[%emt 0:00:06]} Kxd8 {[%emt 0:00:03]} 8. Nc3 {[%emt 0:00:17]} Kc7 $146 {[%emt 0:17:40]} ({Vorgänger:} 8... Nf6 9. Bh3 Bxh3 10. Nxh3 h6 11. f3 Nbd7 12. Nf2 Ke7 13. O-O-O Rhd8 14. Nfe4 g6 15. Nxf6 Nxf6 16. Rxd8 Rxd8 17. Rd1 Rd4 18. Rxd4 exd4 {½-½ (18) Rosen,B (2316)-Fressinet,L (2536) Germany 2001}) 9. b3 {[%emt 0:01:24]} Nf6 {[%emt 0:06:56]} 10. f3 {[%emt 0:02:53]} a5 {[%emt 0:00:44]} 11. Rd1 {[%emt 0:04:33]} Na6 {[%emt 0:00:53]} 12. e3 {[%emt 0:00:39]} Nc5 {[%emt 0:07:57]} 13. e4 {[%emt 0:10:23]} h5 {[%emt 0:06:52]} 14. h4 {[%emt 0:00:20]} Ne6 {[%emt 0:00:33]} 15. Nh3 {[%emt 0:03:40]} Nh7 {[%emt 0:09:13]} 16. Kf2 {[%emt 0:06:24]} f6 {[%emt 0:00:27]} 17. Ke3 {[%emt 0:05:28]} Nd4 {[%emt 0:02:01]} 18. Ne2 {[%emt 0:13:17]} Nxe2 {[%emt 0:00:14]} 19. Bxe2 {[%emt 0:05:20]} Nf8 {[%emt 0:00:10]} 20. f4 {[%emt 0:03:11]} Bxh3 {[%emt 0:01:59]} 21. Rxh3 {[%emt 0:05:45]} Ne6 {[%emt 0:04:30]} 22. Rf1 {[%emt 0:01:01]} Kd6 {[%emt 0:10:04]} 23. fxe5+ {[%emt 0:08:57]} fxe5 {[%emt 0:00:05]} 24. Rf7 {[%emt 0:00:06]} b6 {[%emt 0:02:12]} 25. Rh1 {[%emt 0:00:35]} Raf8 {[%emt 0:06:08]} 26. Rd1+ {[%emt 0:00:09]} Kc5 {[%emt 0:01:03]} 27. Re7 {[%emt 0:00:11]} Rf6 {[%emt 0:00:37]} 28. a3 {[%emt 0:02:01]} Rhh6 {[%emt 0:00:58]} 29. Rd3 {[%emt 0:02:49]} a4 $2 {[%emt 0:01:56]} (29... Rh8 $18 30. Kd2 Rd8) 30. b4+ {[%emt 0:02:04]} Kxc4 {[%emt 0:00:05]} 31. Rd6+ {[%emt 0:00:05]} Kb3 {[%emt 0:00:17]} 32. Rxc6 {[%emt 0:07:32]} Kxa3 {[%emt 0:05:19]} 33. Rxb6 {[%emt 0:01:03]} Kb2 {[%emt 0:00:21]} 34. Ra6 {[%emt 0:03:19]} a3 {[%emt 0:00:11]} 35. Rea7 {[%emt 0:00:54]} Nd4 {[%emt 0:00:09]} 36. Ra4 {[%emt 0:02:49]} Rc6 {[%emt 0:04:31]} 37. Bd1 {[%emt 0:03:47]} Rc3+ {[%emt 0:00:35]} 38. Kd2 {[%emt 0:00:13]} Rf6 {[%emt 0:08:31]} 39. b5 {[%emt 0:00:39]} Rf2+ {[%emt 0:01:47]} 40. Ke1 {[%emt 0:00:02]} Rh2 {[%emt 0:00:14]} 41. b6 {[%emt 0:30:31]} Nc2+ {[%emt 0:08:57]} 42. Kf1 {[%emt 0:00:00]} Ne3+ {[%emt 0:00:17]} 43. Kg1 {[%emt 0:00:00]} Rg2+ {[%emt 0:00:15]} 44. Kh1 {[%emt 0:00:00]} Rd2 {[%emt 0:00:59]} 45. Rb4+ {[%emt 0:00:00]} Ka1 {[%emt 0:02:35]} 46. Rc7 {[%emt 0:00:00]} Rxd1+ {[%emt 0:00:37]} 47. Kh2 {[%emt 0:00:00]} Ng4+ {[%emt 0:02:23]} 48. Kg2 {[%emt 0:00:00]} Rxc7 {[%emt 0:03:02]} 49. bxc7 {[%emt 0:00:00]} Rc1 {[%emt 0:00:07]} 50. Rb7 $19 {[%emt 0:00:00]} Rc2+ {[%emt 0:01:24]} 51. Kf1 {[%emt 0:00:00]} Nf6 {[%emt 0:00:14]} 0-1

[Event "18th Brasschaat Open 2018"]
[Site "Brasschaat"]
[Date "2018.08.26"]
[Round "9"]
[White "Van Herck, Marcel"]
[Black "Naalden, Marc"]
[Result "1-0"]
[ECO "A83"]
[WhiteElo "2019"]
[BlackElo "1860"]
[Annotator "NA"]
[PlyCount "33"]
[EventDate "2018.08.18"]
[EventType "swiss"]
[EventCountry "BEL"]
[SourceTitle "playchess.com"]
[Source "ChessBase"]
[SourceQuality "1"]
[TimeControl "40/5400+30:1800+30"]

1. d4 {[%emt 0:00:01]} f5 {[%emt 0:00:00]} 2. e4 {[%emt 0:00:07]} fxe4 {[%emt 0:00:01]} 3. Nc3 {[%emt 0:00:02]} Nf6 {[%emt 0:00:23]} 4. Bg5 {[%emt 0:00:04]} g6 {[%emt 0:00:33]} 5. h4 {[%emt 0:14:27]} Bg7 {[%emt 0:02:55]} 6. h5 {[%emt 0:07:46]} d5 {[%emt 0:05:09]} 7. h6 {[%emt 0:01:28]} Bf8 {[%emt 0:00:07]} 8. f3 {[%emt 0:00:12]} Qd6 {[%emt 0:04:46]} 9. Nge2 {[%emt 0:02:05]} exf3 {[%emt 0:05:51]} 10. gxf3 {[%emt 0:00:19]} Nc6 {[%emt 0:02:03]} 11. Nb5 {[%emt 0:02:13]} Qb4+ {[%emt 0:03:31]} 12. Nec3 {[%emt 0:00:19]} Kd8 {[%emt 0:07:21]} 13. a3 {[%emt 0:01:33]} Qa5 {[%emt 0:05:52]} 14. b4 {[%emt 0:00:32]} Nxb4 {[%emt 0:03:01]} 15. axb4 {[%emt 0:00:07]} Qxb4 {[%emt 0:00:07]} 16. Ra4 {[%emt 0:01:41]} Qb2 {[%emt 0:01:23]} 17. Bc1 {[%emt 0:00:07]} 1-0

[Event "18th Brasschaat Open 2018"]
[Site "Brasschaat"]
[Date "2018.08.26"]
[Round "9"]
[White "De Block, Fabio"]
[Black "Baselmans, Luuk"]
[Result "1-0"]
[ECO "E11"]
[WhiteElo "1956"]
[BlackElo "2100"]
[Annotator "NA"]
[PlyCount "65"]
[EventDate "2018.08.18"]
[EventType "swiss"]
[EventCountry "BEL"]
[SourceTitle "playchess.com"]
[Source "ChessBase"]
[SourceQuality "1"]
[TimeControl "40/5400+30:1800+30"]

1. d4 {[%emt 0:00:00]} e6 {[%emt 0:00:00]} 2. c4 {[%emt 0:00:00]} Bb4+ {[%emt 0:00:00]} 3. Bd2 {[%emt 0:00:00]} a5 {[%emt 0:00:00]} 4. g3 {[%emt 0:00:33]} Nf6 {[%emt 0:00:56]} 5. Bg2 {[%emt 0:00:05]} d5 {[%emt 0:05:06]} 6. Nf3 {[%emt 0:08:24]} O-O {[%emt 0:01:33]} 7. O-O {[%emt 0:01:00]} Ne4 {[%emt 0:08:07] E11: Bogo-Indian} (7... c6 8. Bxb4 axb4 9. Nbd2 b6 10. Qc2 Bb7 11. Rfd1 Qe7 12. e4 Na6 13. e5 Nd7 14. h4 Rfd8 15. Ng5 {0-1 (47) Meskovs,N (2546)-Fridman,D (2635) Tallinn 2018}) 8. Bf4 {[%emt 0:11:22]} Bd6 {[%emt 0:02:04]} 9. Bxd6 {[%emt 0:02:39]} Qxd6 {[%emt 0:00:39]} 10. Nc3 {[%emt 0:01:48]} Nxc3 {[%emt 0:02:17]} 11. bxc3 {[%emt 0:00:04]} dxc4 $146 {[%emt 0:02:54]} ({Predecessor:} 11... b6 12. Ne5 f6 13. Nd3 Nd7 14. Nf4 c6 15. cxd5 exd5 {1-0 (48) Aviles,F (2044)-Alidani,L (1954) Olongapo City 2015}) 12. Ne5 {[%emt 0:02:38]} Qa6 {[%emt 0:00:51]} 13. a4 {[%emt 0:05:04]} Nd7 {[%emt 0:01:57]} 14. Nf3 {[%emt 0:06:25]} Rb8 {[%emt 0:11:29]} 15. e4 {[%emt 0:05:20]} c6 {[%emt 0:01:10]} 16. Re1 {[%emt 0:04:29]} b5 {[%emt 0:02:43]} 17. axb5 {[%emt 0:00:47]} cxb5 {[%emt 0:00:12]} 18. d5 {[%emt 0:00:09]} Nc5 {[%emt 0:02:27]} 19. Nd4 {[%emt 0:00:32]} exd5 {[%emt 0:03:51]} 20. exd5 {[%emt 0:00:11]} Bd7 $17 {[%emt 0:01:21]} 21. Nc6 {[%emt 0:11:11]} Bxc6 {[%emt 0:00:07]} 22. dxc6 {[%emt 0:00:04]} Qb6 {[%emt 0:01:21]} 23. Qf3 {[%emt 0:02:47]} Rbc8 {[%emt 0:02:56]} 24. Re7 {[%emt 0:02:14]} a4 {[%emt 0:12:12]} 25. Qe3 {[%emt 0:03:18]} b4 {[%emt 0:05:19]} 26. Rb7 {[%emt 0:01:03]} Qd8 {[%emt 0:01:57]} 27. Qxc5 {[%emt 0:00:10]} b3 {[%emt 0:00:25]} 28. Qxc4 {[%emt 0:00:38]} Qd2 {[%emt 0:00:41]} 29. Qxa4 {[%emt 0:01:45]} b2 {[%emt 0:00:14]} 30. Rb1 {[%emt 0:00:34]} Ra8 {[%emt 0:01:27]} 31. Qd1 {[%emt 0:00:10]} Qxd1+ {[%emt 0:01:13]} 32. Rxd1 {[%emt 0:00:04]} Ra1 {[%emt 0:00:04]} 33. Rf1 {[%emt 0:00:11]} 1-0

[Event "18th Brasschaat Open 2018"]
[Site "Brasschaat"]
[Date "2018.08.26"]
[Round "9"]
[White "Engelaer, Maurice"]
[Black "Beukema, Constantijn"]
[Result "1/2-1/2"]
[ECO "C25"]
[WhiteElo "1915"]
[BlackElo "1758"]
[Annotator "NA"]
[PlyCount "76"]
[EventDate "2018.08.18"]
[EventType "swiss"]
[EventCountry "BEL"]
[SourceTitle "playchess.com"]
[Source "ChessBase"]
[SourceQuality "1"]
[TimeControl "40/5400+30:1800+30"]

1. e4 {[%emt 0:00:00]} e5 {[%emt 0:06:37]} 2. Bc4 {[%emt 0:00:05]} Nc6 {[%emt 0:00:50]} 3. Nc3 {[%emt 0:01:09]} Bc5 {[%emt 0:00:38]} 4. Qg4 {[%emt 0:01:25]} g6 {[%emt 0:07:04]} 5. Qf3 {[%emt 0:04:35]} Nf6 {[%emt 0:00:34] C25: Wiener Partie} 6. Nd5 {[%emt 0:06:53]} (6. Nge2 d6 7. h3 h6 8. d3 Qe7 9. g4 Be6 10. Bxe6 fxe6 11. Bxh6 Rxh6 12. g5 Rh7 13. Qxf6 Qxf6 14. gxf6 Rf7 15. O-O Rxf6 16. Na4 Bb6 17. a3 Ke7 {½-½ (17) Koziak,V (2480)-Chojnacki,K (2400) Police 2015}) 6... Nxd5 {[%emt 0:01:34]} 7. Bxd5 {[%emt 0:00:03]} Qe7 {[%emt 0:00:39]} 8. Ne2 {[%emt 0:02:04]} Nd4 {[%emt 0:01:53]} 9. Nxd4 {[%emt 0:00:41]} Bxd4 {[%emt 0:00:29]} 10. O-O $146 {[%emt 0:01:10]} ({Vorgänger:} 10. d3 d6 11. h4 f6 12. c3 Bb6 13. Be3 {1-0 (23) Poveda Zapata,J-Mosquera,A (1698) Coliseo Menor 2011}) 10... d6 {[%emt 0:01:04]} 11. c3 {[%emt 0:02:50]} Bb6 {[%emt 0:00:13]} 12. a4 {[%emt 0:00:53]} c6 {[%emt 0:00:34]} 13. a5 {[%emt 0:03:11]} cxd5 {[%emt 0:01:21]} 14. axb6 {[%emt 0:00:12]} dxe4 {[%emt 0:00:15]} 15. Qxe4 {[%emt 0:01:08]} a6 {[%emt 0:00:13]} 16. d4 {[%emt 0:01:40]} O-O {[%emt 0:01:05]} 17. Re1 {[%emt 0:06:53]} f5 {[%emt 0:02:18]} 18. Qc2 {[%emt 0:03:38]} Qf6 {[%emt 0:03:18]} 19. Qb3+ {[%emt 0:05:55]} Be6 {[%emt 0:00:33]} 20. d5 {[%emt 0:00:53]} Bd7 {[%emt 0:00:09]} 21. Qb4 {[%emt 0:05:39]} f4 {[%emt 0:00:27]} 22. f3 {[%emt 0:03:40]} Rfc8 {[%emt 0:06:19]} 23. b3 {[%emt 0:01:07]} Rc5 {[%emt 0:00:38]} 24. c4 {[%emt 0:00:20]} a5 {[%emt 0:00:28]} 25. Qd2 {[%emt 0:03:21]} a4 {[%emt 0:02:09]} 26. Ba3 {[%emt 0:14:31]} Rcc8 {[%emt 0:02:05]} 27. Qa2 {[%emt 0:01:18]} axb3 {[%emt 0:01:23]} 28. Qxb3 {[%emt 0:00:13]} Ra4 {[%emt 0:00:42]} 29. Bb4 {[%emt 0:06:04]} Rxa1 $1 {[%emt 0:04:34]} 30. Rxa1 {[%emt 0:00:12]} e4 {[%emt 0:03:04]} 31. Bc3 {[%emt 0:01:32]} Qf5 {[%emt 0:01:06]} 32. fxe4 {[%emt 0:05:44]} Qxe4 {[%emt 0:00:11]} 33. Re1 {[%emt 0:00:21]} Qd3 {[%emt 0:00:49]} 34. Qb2 {[%emt 0:07:34]} Re8 {[%emt 0:07:32]} 35. Rxe8+ $11 {[%emt 0:00:42]} Bxe8 {[%emt 0:00:06]} 36. Bh8 {[%emt 0:02:39]} Qe3+ {[%emt 0:00:27]} 37. Kf1 {[%emt 0:00:31]} Qd3+ {[%emt 0:00:35]} 38. Kg1 {[%emt 0:02:04]} Qe3+ {[%emt 0:00:53]} 1/2-1/2

[Event "18th Brasschaat Open 2018"]
[Site "Brasschaat"]
[Date "2018.08.26"]
[Round "9"]
[White "Raats, Joppe"]
[Black "Boudry, William"]
[Result "0-1"]
[ECO "C01"]
[WhiteElo "1862"]
[BlackElo "2044"]
[Annotator "NA"]
[PlyCount "62"]
[EventDate "2018.08.18"]
[EventType "swiss"]
[EventCountry "BEL"]
[SourceTitle "playchess.com"]
[Source "ChessBase"]
[SourceQuality "1"]
[TimeControl "40/5400+30:1800+30"]

1. e4 {[%emt 0:00:00]} e6 {[%emt 0:00:00]} 2. d4 {[%emt 0:00:03]} d5 {[%emt 0:00:00]} 3. Bd3 {[%emt 0:00:13]} dxe4 {[%emt 0:00:08]} 4. Bxe4 {[%emt 0:00:14]} Nf6 {[%emt 0:00:01]} 5. Bf3 {[%emt 0:00:08]} c5 {[%emt 0:00:21]} 6. Ne2 {[%emt 0:00:23]} Be7 {[%emt 0:01:16] C01: French: Exchange Variation} (6... Nc6 7. Be3 Nd5 8. Bxd5 Qxd5 9. Nbc3 Qxg2 10. Rg1 Qf3 11. Nb5 Rb8 12. dxc5 Bd7 13. Nc7+ Kd8 14. Nb5 {0-1 (54) Kramnik,V (2808)-Caruana,F (2808) Stavanger 2017}) 7. O-O {[%emt 0:00:45]} O-O {[%emt 0:00:12]} 8. c4 {[%emt 0:02:10]} cxd4 {[%emt 0:00:10]} 9. Nxd4 {[%emt 0:01:26]} Nbd7 {[%emt 0:01:07]} 10. Nc3 {[%emt 0:01:10]} a6 {[%emt 1:31:45]} 11. Be3 $146 {[%emt 0:03:42]} ({Predecessor:} 11. Re1 Qc7 12. b3 {1-0 (46) Ponkratov,P (2607)-Nestor,K (2114) Tallinn 2016}) 11... Ne5 {[%emt 0:00:00]} 12. Be2 {[%emt 0:01:36]} Qc7 {[%emt 0:00:00]} 13. b3 {[%emt 0:14:06]} Rd8 {[%emt 0:00:00]} 14. Qc1 {[%emt 0:02:22]} Neg4 {[%emt 0:00:00]} 15. Nf3 {[%emt 0:04:07]} Bd6 {[%emt 0:00:00]} 16. g3 {[%emt 0:03:49]} Nxe3 {[%emt 0:00:00]} 17. Qxe3 {[%emt 0:00:38]} Bd7 {[%emt 0:00:00]} 18. Rfd1 {[%emt 0:04:51]} Bc5 {[%emt 0:00:00]} 19. Qe5 {[%emt 0:06:31]} Bxf2+ {[%emt 0:00:00]} 20. Kg2 {[%emt 0:01:25]} Qb6 {[%emt 0:00:00]} 21. Qf4 {[%emt 0:08:45]} Be3 {[%emt 0:00:00]} 22. Qh4 {[%emt 0:03:24]} Bc6 {[%emt 0:00:00]} 23. g4 $2 {[%emt 0:03:40]} (23. Kf1) 23... g5 {[%emt 0:00:00]} 24. Qh3 {[%emt 0:01:00]} Bd4 {[%emt 0:00:00]} 25. Rac1 {[%emt 0:00:44]} Bxc3 {[%emt 0:00:00]} 26. Rxd8+ {[%emt 0:00:06]} Rxd8 {[%emt 0:00:00]} 27. Rxc3 {[%emt 0:00:16]} Ne4 $19 {[%emt 0:00:00]} 28. Rc2 {[%emt 0:01:46]} Qf2+ {[%emt 0:00:00]} 29. Kh1 {[%emt 0:00:43]} Nd2 {[%emt 0:00:00]} 30. Qg2 {[%emt 0:03:50]} Bxf3 {[%emt 0:00:00]} 31. Bxf3 {[%emt 0:00:24]} Qe1+ {[%emt 0:00:00]} 0-1